[Event "*** SCC Grand Prix: Titled Tuesday Blitz"]
[Site "Chess.com"]
[Date "2020.08.25"]
[Round "5"]
[White "phoenix_sjh"]
[Black "boasovietica"]
[Result "1/2-1/2"]
[WhiteElo "2526"]
[BlackElo "2400"]
[TimeControl "180+1"]
[EndTime "10:59:12 PDT"]
[Termination "Game drawn by stalemate"]

1. d4 {[%clk 0:03:00.9]} 1... Nf6 {[%clk 0:02:55]} 2. c4 {[%clk 0:03:01]} 2...
g6 {[%clk 0:02:51.6]} 3. Nc3 {[%clk 0:03:00.3]} 3... Bg7 {[%clk 0:02:51.1]} 4.
e4 {[%clk 0:03:00.5]} 4... O-O {[%clk 0:02:51.5]} 5. Be2 {[%clk 0:03:01]} 5...
d6 {[%clk 0:02:52.1]} 6. Nf3 {[%clk 0:03:01.5]} 6... Bg4 {[%clk 0:02:52.6]} 7.
O-O {[%clk 0:03:00.1]} 7... Nfd7 {[%clk 0:02:52.3]} 8. Be3 {[%clk 0:02:57.9]}
8... c5 {[%clk 0:02:52.3]} 9. d5 {[%clk 0:02:51.7]} 9... Na6 {[%clk 0:02:52.2]}
10. h3 {[%clk 0:02:41.9]} 10... Bxf3 {[%clk 0:02:52.1]} 11. Bxf3 {[%clk
0:02:42.8]} 11... Nc7 {[%clk 0:02:52.3]} 12. a4 {[%clk 0:02:37.5]} 12... a6
{[%clk 0:02:52.3]} 13. a5 {[%clk 0:02:37.2]} 13... Rb8 {[%clk 0:02:47.1]} 14.
Qc2 {[%clk 0:02:31.5]} 14... b5 {[%clk 0:02:46.1]} 15. axb6 {[%clk 0:02:30.2]}
15... Rxb6 {[%clk 0:02:43.7]} 16. Ra3 {[%clk 0:02:24.2]} 16... e6 {[%clk
0:02:31.1]} 17. Be2 {[%clk 0:01:54.5]} 17... exd5 {[%clk 0:02:17.9]} 18. exd5
{[%clk 0:01:53.4]} 18... Re8 {[%clk 0:02:09.3]} 19. Rb3 {[%clk 0:01:40.9]} 19...
Rb4 {[%clk 0:01:58.9]} 20. Na2 {[%clk 0:01:36.2]} 20... Rxb3 {[%clk 0:01:51.7]}
21. Qxb3 {[%clk 0:01:37.1]} 21... Qb8 {[%clk 0:01:51.2]} 22. Qa4 {[%clk
0:01:30.6]} 22... Re7 {[%clk 0:01:20.4]} 23. b3 {[%clk 0:01:28.3]} 23... Nb6
{[%clk 0:01:11.5]} 24. Qc6 {[%clk 0:01:24.1]} 24... Nc8 {[%clk 0:01:06.8]} 25.
Bg4 {[%clk 0:01:07.9]} 25... f5 {[%clk 0:00:47.2]} 26. Bd1 {[%clk 0:01:05.1]}
26... Be5 {[%clk 0:00:34.8]} 27. Bf3 {[%clk 0:00:49.3]} 27... Qxb3 {[%clk
0:00:25.7]} 28. Nc1 {[%clk 0:00:48.2]} 28... Qb6 {[%clk 0:00:22.1]} 29. Qa4
{[%clk 0:00:47]} 29... Qb4 {[%clk 0:00:19.4]} 30. Qc6 {[%clk 0:00:25.3]} 30...
Na7 {[%clk 0:00:17.9]} 31. Nd3 {[%clk 0:00:17.1]} 31... Nxc6 {[%clk 0:00:16.3]}
32. Nxb4 {[%clk 0:00:17]} 32... Nxb4 {[%clk 0:00:16.8]} 33. Bg5 {[%clk
0:00:17.1]} 33... Re8 {[%clk 0:00:15.2]} 34. g4 {[%clk 0:00:15.9]} 34... Kg7
{[%clk 0:00:10]} 35. gxf5 {[%clk 0:00:15.1]} 35... gxf5 {[%clk 0:00:10.5]} 36.
Kh1 {[%clk 0:00:14.8]} 36... Bf6 {[%clk 0:00:09.7]} 37. Bf4 {[%clk 0:00:14.8]}
37... Be5 {[%clk 0:00:07.6]} 38. Rg1+ {[%clk 0:00:15.1]} 38... Kh8 {[%clk
0:00:06]} 39. Bh6 {[%clk 0:00:14.3]} 39... Rg8 {[%clk 0:00:05.5]} 40. Rd1 {[%clk
0:00:11.7]} 40... a5 {[%clk 0:00:05.6]} 41. Bh5 {[%clk 0:00:11.1]} 41... a4
{[%clk 0:00:05.3]} 42. Bf7 {[%clk 0:00:11.2]} 42... a3 {[%clk 0:00:04.8]} 43.
Bxg8 {[%clk 0:00:10.4]} 43... Kxg8 {[%clk 0:00:04.1]} 44. Rg1+ {[%clk
0:00:10.8]} 44... Kf7 {[%clk 0:00:03.3]} 45. f4 {[%clk 0:00:04.2]} 45... a2
{[%clk 0:00:03.6]} 46. fxe5 {[%clk 0:00:03.6]} 46... dxe5 {[%clk 0:00:03.9]} 47.
Be3 {[%clk 0:00:03.6]} 47... Nc2 {[%clk 0:00:03.8]} 48. Bxc5 {[%clk 0:00:03.9]}
48... a1=Q {[%clk 0:00:03.9]} 49. Rxa1 {[%clk 0:00:04.5]} 49... Nxa1 {[%clk
0:00:04.8]} 50. Bd6 {[%clk 0:00:05.1]} 50... Ne8 {[%clk 0:00:04.8]} 51. Bxe5
{[%clk 0:00:05.4]} 51... Nc2 {[%clk 0:00:05]} 52. c5 {[%clk 0:00:05.2]} 52...
Ne3 {[%clk 0:00:04.8]} 53. d6 {[%clk 0:00:04.3]} 53... Ke6 {[%clk 0:00:05]} 54.
Bd4 {[%clk 0:00:02.8]} 54... Nc4 {[%clk 0:00:04.8]} 55. Bg1 {[%clk 0:00:03.7]}
55... Ncxd6 {[%clk 0:00:04.8]} 56. cxd6 {[%clk 0:00:03.3]} 56... Nxd6 {[%clk
0:00:05.7]} 57. Kg2 {[%clk 0:00:04]} 57... Ke5 {[%clk 0:00:06]} 58. Kf3 {[%clk
0:00:03.9]} 58... Ne4 {[%clk 0:00:06.3]} 59. Bh2+ {[%clk 0:00:03.9]} 59... Ke6
{[%clk 0:00:06]} 60. Kf4 {[%clk 0:00:04.1]} 60... h6 {[%clk 0:00:06.3]} 61. Bg1
{[%clk 0:00:04.3]} 61... Nf6 {[%clk 0:00:06.7]} 62. Bd4 {[%clk 0:00:03.7]} 62...
Nd5+ {[%clk 0:00:07]} 63. Kf3 {[%clk 0:00:04.1]} 63... Kf7 {[%clk 0:00:06.7]}
64. Be5 {[%clk 0:00:04.3]} 64... Kg6 {[%clk 0:00:07]} 65. Bd4 {[%clk 0:00:04.2]}
65... Nf6 {[%clk 0:00:07]} 66. Kf4 {[%clk 0:00:03.6]} 66... Nh5+ {[%clk
0:00:07.3]} 67. Kf3 {[%clk 0:00:03.9]} 67... Kg5 {[%clk 0:00:07.3]} 68. Be3+
{[%clk 0:00:03.9]} 68... f4 {[%clk 0:00:07.5]} 69. Bd2 {[%clk 0:00:04.3]} 69...
Kh4 {[%clk 0:00:07.1]} 70. Bxf4 {[%clk 0:00:04.5]} 70... Nxf4 {[%clk 0:00:06.6]}
71. Kxf4 {[%clk 0:00:05.4]} 71... Kxh3 {[%clk 0:00:06.9]} 72. Kf3 {[%clk
0:00:06.3]} 72... h5 {[%clk 0:00:06.6]} 73. Kf2 {[%clk 0:00:07.2]} 73... Kh2
{[%clk 0:00:07.2]} 74. Kf1 {[%clk 0:00:07.5]} 74... h4 {[%clk 0:00:07.8]} 75.
Kf2 {[%clk 0:00:08]} 75... h3 {[%clk 0:00:08.5]} 76. Kf1 {[%clk 0:00:08.6]}
76... Kh1 {[%clk 0:00:08.2]} 77. Kf2 {[%clk 0:00:08.9]} 77... Kh2 {[%clk
0:00:08.9]} 78. Kf1 {[%clk 0:00:09.2]} 78... Kg3 {[%clk 0:00:08.4]} 79. Kg1
{[%clk 0:00:09.5]} 79... h2+ {[%clk 0:00:09]} 80. Kh1 {[%clk 0:00:10.4]} 80...
Kh3 {[%clk 0:00:09.9]} 1/2-1/2

[Event "*** SCC Grand Prix: Titled Tuesday Blitz"]
[Site "Chess.com"]
[Date "2020.08.25"]
[Round "5"]
[White "FontVella8"]
[Black "mbojan"]
[Result "1-0"]
[WhiteElo "2500"]
[BlackElo "2787"]
[TimeControl "180+1"]
[EndTime "10:59:16 PDT"]
[Termination "FontVella8 won by checkmate"]

1. e4 {[%clk 0:02:56.7]} 1... c5 {[%clk 0:02:59.8]} 2. Nf3 {[%clk 0:02:55.5]}
2... Nc6 {[%clk 0:02:59.7]} 3. d4 {[%clk 0:02:55.7]} 3... cxd4 {[%clk
0:02:59.8]} 4. Nxd4 {[%clk 0:02:56.3]} 4... Nf6 {[%clk 0:03:00.3]} 5. Nc3 {[%clk
0:02:56.5]} 5... e5 {[%clk 0:03:00.4]} 6. Ndb5 {[%clk 0:02:55.8]} 6... d6 {[%clk
0:03:00.4]} 7. Bg5 {[%clk 0:02:55.7]} 7... a6 {[%clk 0:03:00.1]} 8. Na3 {[%clk
0:02:53.7]} 8... b5 {[%clk 0:03:00.4]} 9. Bxf6 {[%clk 0:02:53.5]} 9... gxf6
{[%clk 0:02:58.9]} 10. Nd5 {[%clk 0:02:52.1]} 10... f5 {[%clk 0:02:57.9]} 11. g3
{[%clk 0:02:52.1]} 11... fxe4 {[%clk 0:02:53.2]} 12. Bg2 {[%clk 0:02:51]} 12...
Be6 {[%clk 0:02:50.7]} 13. Bxe4 {[%clk 0:02:43.8]} 13... Rb8 {[%clk 0:02:40.6]}
14. O-O {[%clk 0:02:37.5]} 14... Bg7 {[%clk 0:02:35.4]} 15. Qh5 {[%clk 0:02:24]}
15... Ne7 {[%clk 0:02:20.9]} 16. Nxe7 {[%clk 0:02:05.6]} 16... Qxe7 {[%clk
0:02:21.8]} 17. Rad1 {[%clk 0:01:59.6]} 17... h6 {[%clk 0:02:05.9]} 18. Bc6+
{[%clk 0:01:13.4]} 18... Kf8 {[%clk 0:02:03.5]} 19. c3 {[%clk 0:01:08.8]} 19...
Bxa2 {[%clk 0:01:38.6]} 20. Nc2 {[%clk 0:01:03.9]} 20... Bb3 {[%clk 0:01:37.9]}
21. Ne3 {[%clk 0:01:04]} 21... Bxd1 {[%clk 0:01:19.1]} 22. Rxd1 {[%clk
0:01:02.6]} 22... Qe6 {[%clk 0:01:03.6]} 23. Nf5 {[%clk 0:00:50.7]} 23... Rd8
{[%clk 0:01:02.7]} 24. Bd5 {[%clk 0:00:43.9]} 24... Qg6 {[%clk 0:01:01.5]} 25.
Qf3 {[%clk 0:00:43.9]} 25... Bf6 {[%clk 0:00:57.8]} 26. Be4 {[%clk 0:00:40.7]}
26... Bg7 {[%clk 0:00:36.2]} 27. Nxd6 {[%clk 0:00:25.7]} 27... Qxd6 {[%clk
0:00:37.1]} 28. Rxd6 {[%clk 0:00:25.2]} 28... Rxd6 {[%clk 0:00:38]} 29. Bd5
{[%clk 0:00:24.2]} 29... Bf6 {[%clk 0:00:36.7]} 30. b3 {[%clk 0:00:23.6]} 30...
h5 {[%clk 0:00:33.5]} 31. c4 {[%clk 0:00:23.7]} 31... bxc4 {[%clk 0:00:33.5]}
32. bxc4 {[%clk 0:00:24.6]} 32... Kg7 {[%clk 0:00:33.4]} 33. c5 {[%clk
0:00:23.4]} 33... Rdd8 {[%clk 0:00:32.1]} 34. c6 {[%clk 0:00:20.8]} 34... Rd6
{[%clk 0:00:30.3]} 35. h4 {[%clk 0:00:14.7]} 35... a5 {[%clk 0:00:30.1]} 36. Qb3
{[%clk 0:00:11.3]} 36... a4 {[%clk 0:00:23.6]} 37. Qa2 {[%clk 0:00:08]} 37...
Rhd8 {[%clk 0:00:20.4]} 38. c7 {[%clk 0:00:05.1]} 38... Rc8 {[%clk 0:00:16]} 39.
Bxf7 {[%clk 0:00:05.2]} 39... Rxc7 {[%clk 0:00:16.4]} 40. Bxh5 {[%clk
0:00:05.5]} 40... Ra7 {[%clk 0:00:14.9]} 41. Kg2 {[%clk 0:00:05.5]} 41... a3
{[%clk 0:00:14.6]} 42. Bf3 {[%clk 0:00:04.9]} 42... Rda6 {[%clk 0:00:13.6]} 43.
Bd5 {[%clk 0:00:04.5]} 43... Rb6 {[%clk 0:00:13.8]} 44. Qe2 {[%clk 0:00:03.7]}
44... Rba6 {[%clk 0:00:12]} 45. Qg4+ {[%clk 0:00:03.7]} 45... Kh7 {[%clk
0:00:10.9]} 46. Qh5+ {[%clk 0:00:03.8]} 46... Kg7 {[%clk 0:00:11]} 47. Qg4+
{[%clk 0:00:04.4]} 47... Kh7 {[%clk 0:00:11.6]} 48. Be4+ {[%clk 0:00:04.4]}
48... Kh8 {[%clk 0:00:11.1]} 49. Qh5+ {[%clk 0:00:04.6]} 49... Kg7 {[%clk
0:00:11.6]} 50. Qg6+ {[%clk 0:00:04.3]} 50... Kf8 {[%clk 0:00:12.2]} 51. Bd5
{[%clk 0:00:04.1]} 51... a2 {[%clk 0:00:11.1]} 52. Qg8+ {[%clk 0:00:04.2]} 52...
Ke7 {[%clk 0:00:11.7]} 53. Qf7+ {[%clk 0:00:03.5]} 53... Kd8 {[%clk 0:00:12.3]}
54. Qf8+ {[%clk 0:00:02.7]} 54... Kc7 {[%clk 0:00:12.9]} 55. Bxa2 {[%clk
0:00:02.9]} 55... Rxa2 {[%clk 0:00:10.7]} 56. Qxf6 {[%clk 0:00:03.2]} 56... R2a5
{[%clk 0:00:11.1]} 57. h5 {[%clk 0:00:03.4]} 57... R7a6 {[%clk 0:00:11.8]} 58.
Qe7+ {[%clk 0:00:03.4]} 58... Kc6 {[%clk 0:00:12.1]} 59. g4 {[%clk 0:00:03.7]}
59... Kd5 {[%clk 0:00:12.4]} 60. g5 {[%clk 0:00:03.3]} 60... Ra4 {[%clk
0:00:12.2]} 61. h6 {[%clk 0:00:03.4]} 61... Rg4+ {[%clk 0:00:12.2]} 62. Kh3
{[%clk 0:00:03.9]} 62... Rg1 {[%clk 0:00:11.6]} 63. Qd7+ {[%clk 0:00:03.7]}
63... Ke4 {[%clk 0:00:11.7]} 64. Qb7+ {[%clk 0:00:04]} 64... Kf4 {[%clk
0:00:11.4]} 65. Qxa6 {[%clk 0:00:03.7]} 65... Rxg5 {[%clk 0:00:11.6]} 66. Qc4+
{[%clk 0:00:03]} 66... Kf5 {[%clk 0:00:11.9]} 67. Qf7+ {[%clk 0:00:02.7]} 67...
Ke4 {[%clk 0:00:12]} 68. f3+ {[%clk 0:00:03.4]} 68... Ke3 {[%clk 0:00:12.3]} 69.
h7 {[%clk 0:00:04]} 69... Rg1 {[%clk 0:00:12.5]} 70. Kh4 {[%clk 0:00:03.3]}
70... Rh1+ {[%clk 0:00:12.8]} 71. Kg5 {[%clk 0:00:03.7]} 71... e4 {[%clk
0:00:13.7]} 72. fxe4 {[%clk 0:00:03.6]} 72... Rg1+ {[%clk 0:00:14.3]} 73. Kf6
{[%clk 0:00:03.7]} 73... Rf1+ {[%clk 0:00:14.8]} 74. Kg7 {[%clk 0:00:04.3]}
74... Rg1+ {[%clk 0:00:14.6]} 75. Kf8 {[%clk 0:00:04.3]} 75... Ra1 {[%clk
0:00:15.5]} 76. h8=Q {[%clk 0:00:03.6]} 76... Ra8+ {[%clk 0:00:16.4]} 77. Kg7
{[%clk 0:00:04.2]} 77... Ra5 {[%clk 0:00:16.8]} 78. e5 {[%clk 0:00:04.1]} 78...
Kd4 {[%clk 0:00:17.7]} 79. Qd7+ {[%clk 0:00:03.7]} 79... Ke3 {[%clk 0:00:17.7]}
80. Qhh3+ {[%clk 0:00:03.5]} 80... Ke4 {[%clk 0:00:18]} 81. Qdg4+ {[%clk
0:00:03.5]} 81... Kxe5 {[%clk 0:00:18.4]} 82. Qf5+ {[%clk 0:00:03.5]} 82... Kd6
{[%clk 0:00:19.3]} 83. Qxa5 {[%clk 0:00:03.7]} 83... Kc6 {[%clk 0:00:20.2]} 84.
Qe6+ {[%clk 0:00:03.7]} 84... Kb7 {[%clk 0:00:20.2]} 85. Qd7+ {[%clk 0:00:04.2]}
85... Kb8 {[%clk 0:00:20.2]} 86. Qaa7# {[%clk 0:00:04.9]} 1-0

[Event "*** SCC Grand Prix: Titled Tuesday Blitz"]
[Site "Chess.com"]
[Date "2020.08.25"]
[Round "5"]
[White "sergeikim"]
[Black "blitzking1729"]
[Result "1/2-1/2"]
[WhiteElo "2505"]
[BlackElo "2664"]
[TimeControl "180+1"]
[EndTime "10:59:18 PDT"]
[Termination "Game drawn - insufficient material"]

1. d4 {[%clk 0:03:00.9]} 1... d5 {[%clk 0:02:55.2]} 2. c4 {[%clk 0:03:00.8]}
2... dxc4 {[%clk 0:02:53.8]} 3. e3 {[%clk 0:03:00.1]} 3... e5 {[%clk 0:02:52.7]}
4. Bxc4 {[%clk 0:02:59.8]} 4... exd4 {[%clk 0:02:52.9]} 5. exd4 {[%clk
0:02:59.9]} 5... Nf6 {[%clk 0:02:53.1]} 6. Nf3 {[%clk 0:02:58.5]} 6... Be7
{[%clk 0:02:53]} 7. O-O {[%clk 0:02:58]} 7... O-O {[%clk 0:02:53.4]} 8. h3
{[%clk 0:02:58]} 8... Nbd7 {[%clk 0:02:53.3]} 9. Nc3 {[%clk 0:02:57.4]} 9... c6
{[%clk 0:02:53.4]} 10. Re1 {[%clk 0:02:53.7]} 10... Nb6 {[%clk 0:02:52.8]} 11.
Bb3 {[%clk 0:02:53.6]} 11... h6 {[%clk 0:02:49.1]} 12. Ne5 {[%clk 0:02:52.8]}
12... Nbd5 {[%clk 0:02:47.8]} 13. Qf3 {[%clk 0:02:49.6]} 13... Be6 {[%clk
0:02:46.6]} 14. Qg3 {[%clk 0:02:44.3]} 14... Nh5 {[%clk 0:02:16.6]} 15. Qf3
{[%clk 0:02:42.7]} 15... Nhf6 {[%clk 0:02:15.4]} 16. Qg3 {[%clk 0:02:42.5]}
16... Nxc3 {[%clk 0:02:08.6]} 17. bxc3 {[%clk 0:02:41.6]} 17... Bxb3 {[%clk
0:02:06.8]} 18. axb3 {[%clk 0:02:38.7]} 18... Kh7 {[%clk 0:02:05.1]} 19. Qf3
{[%clk 0:02:25.5]} 19... Bd6 {[%clk 0:02:02.8]} 20. Bf4 {[%clk 0:02:21.5]} 20...
Qc7 {[%clk 0:02:00.3]} 21. c4 {[%clk 0:02:16.3]} 21... Rfe8 {[%clk 0:01:59.6]}
22. c5 {[%clk 0:02:13.5]} 22... Bf8 {[%clk 0:01:43.6]} 23. Ng4 {[%clk
0:02:06.9]} 23... Rxe1+ {[%clk 0:01:39.2]} 24. Rxe1 {[%clk 0:02:05.5]} 24... Qd8
{[%clk 0:01:39]} 25. Qd3+ {[%clk 0:01:56.7]} 25... Kg8 {[%clk 0:01:37.2]} 26.
Ne5 {[%clk 0:01:43.8]} 26... Nd5 {[%clk 0:01:29.8]} 27. Bd2 {[%clk 0:01:41.9]}
27... Qf6 {[%clk 0:01:27.2]} 28. Qg3 {[%clk 0:01:35]} 28... Rd8 {[%clk
0:01:15.7]} 29. b4 {[%clk 0:01:23]} 29... Ne7 {[%clk 0:01:14.2]} 30. Bc3 {[%clk
0:01:19.1]} 30... Nf5 {[%clk 0:01:11]} 31. Qg4 {[%clk 0:01:10.5]} 31... Qg5
{[%clk 0:01:06.6]} 32. Qe4 {[%clk 0:01:08]} 32... Rd5 {[%clk 0:01:00.5]} 33. Kh2
{[%clk 0:01:02.7]} 33... g6 {[%clk 0:00:53.3]} 34. g3 {[%clk 0:00:57.7]} 34...
Bg7 {[%clk 0:00:51.9]} 35. Nxf7 {[%clk 0:00:47.3]} 35... Qf6 {[%clk 0:00:34.4]}
36. Ne5 {[%clk 0:00:45.3]} 36... Kh7 {[%clk 0:00:31.1]} 37. Kg2 {[%clk
0:00:44.7]} 37... Qd8 {[%clk 0:00:30.6]} 38. h4 {[%clk 0:00:37.2]} 38... h5
{[%clk 0:00:30]} 39. Re2 {[%clk 0:00:31.7]} 39... Bxe5 {[%clk 0:00:29.6]} 40.
dxe5 {[%clk 0:00:30.4]} 40... Qe7 {[%clk 0:00:27.5]} 41. e6 {[%clk 0:00:29.6]}
41... a6 {[%clk 0:00:24.4]} 42. Qf4 {[%clk 0:00:29.2]} 42... Kg8 {[%clk
0:00:12.1]} 43. Qb8+ {[%clk 0:00:27.4]} 43... Rd8 {[%clk 0:00:11.2]} 44. Qe5
{[%clk 0:00:26.6]} 44... Qg7 {[%clk 0:00:10.3]} 45. e7 {[%clk 0:00:24.6]} 45...
Re8 {[%clk 0:00:09.8]} 46. Qe6+ {[%clk 0:00:24.2]} 46... Qf7 {[%clk 0:00:10.3]}
47. Qd7 {[%clk 0:00:22.3]} 47... Qd5+ {[%clk 0:00:10.4]} 48. Qxd5+ {[%clk
0:00:21.4]} 48... cxd5 {[%clk 0:00:11.3]} 49. Bf6 {[%clk 0:00:20.7]} 49... Kf7
{[%clk 0:00:11.1]} 50. Bg5 {[%clk 0:00:21.1]} 50... Nxe7 {[%clk 0:00:11.3]} 51.
Re5 {[%clk 0:00:21.1]} 51... Nc6 {[%clk 0:00:09.2]} 52. Rxd5 {[%clk 0:00:20.7]}
52... Ke6 {[%clk 0:00:07.8]} 53. Rd6+ {[%clk 0:00:20.7]} 53... Ke5 {[%clk
0:00:04.9]} 54. Rd7 {[%clk 0:00:19.6]} 54... Nxb4 {[%clk 0:00:04.3]} 55. Rxb7
{[%clk 0:00:19.3]} 55... Nc6 {[%clk 0:00:04.5]} 56. Rb6 {[%clk 0:00:18.5]} 56...
Kd5 {[%clk 0:00:04.9]} 57. Rxa6 {[%clk 0:00:18.6]} 57... Kxc5 {[%clk 0:00:05.6]}
58. Ra2 {[%clk 0:00:18.2]} 58... Kd5 {[%clk 0:00:05.5]} 59. Rd2+ {[%clk
0:00:18.5]} 59... Ke6 {[%clk 0:00:05.4]} 60. Re2+ {[%clk 0:00:18.3]} 60... Kf7
{[%clk 0:00:05.7]} 61. Rxe8 {[%clk 0:00:19.2]} 61... Kxe8 {[%clk 0:00:06.6]} 62.
f3 {[%clk 0:00:18.6]} 62... Kf7 {[%clk 0:00:06.9]} 63. g4 {[%clk 0:00:18.5]}
63... hxg4 {[%clk 0:00:07.8]} 64. fxg4 {[%clk 0:00:18]} 64... Kg8 {[%clk
0:00:07.6]} 65. Kg3 {[%clk 0:00:17.9]} 65... Kh7 {[%clk 0:00:07.6]} 66. Kf4
{[%clk 0:00:17.8]} 66... Nd4 {[%clk 0:00:06.4]} 67. Ke4 {[%clk 0:00:17.3]} 67...
Ne6 {[%clk 0:00:05.4]} 68. Ke5 {[%clk 0:00:17.2]} 68... Nc5 {[%clk 0:00:03.5]}
69. Be3 {[%clk 0:00:16.3]} 69... Nd3+ {[%clk 0:00:03.3]} 70. Kf6 {[%clk
0:00:15]} 70... Ne1 {[%clk 0:00:03.4]} 71. h5 {[%clk 0:00:14.4]} 71... gxh5
{[%clk 0:00:03]} 72. g5 {[%clk 0:00:14.7]} 72... Nf3 {[%clk 0:00:01.9]} 73. Kf7
{[%clk 0:00:12.7]} 73... Nxg5+ {[%clk 0:00:01.7]} 74. Bxg5 {[%clk 0:00:12.6]}
74... h4 {[%clk 0:00:02.6]} 75. Bxh4 {[%clk 0:00:13.1]} 1/2-1/2

[Event "*** SCC Grand Prix: Titled Tuesday Blitz"]
[Site "Chess.com"]
[Date "2020.08.25"]
[Round "5"]
[White "GigaQuparadze"]
[Black "frederiksvane"]
[Result "1/2-1/2"]
[WhiteElo "2821"]
[BlackElo "2647"]
[TimeControl "180+1"]
[EndTime "10:59:23 PDT"]
[Termination "Game drawn by stalemate"]

1. e4 {[%clk 0:03:00.9]} 1... c5 {[%clk 0:03:00.4]} 2. Nf3 {[%clk 0:03:00.5]}
2... g6 {[%clk 0:03:00.6]} 3. c3 {[%clk 0:02:59.9]} 3... d5 {[%clk 0:03:00.5]}
4. exd5 {[%clk 0:02:56.7]} 4... Qxd5 {[%clk 0:03:01.4]} 5. d4 {[%clk 0:02:57.3]}
5... Bg7 {[%clk 0:03:01.4]} 6. Be3 {[%clk 0:02:56.8]} 6... cxd4 {[%clk
0:03:01.4]} 7. cxd4 {[%clk 0:02:57.7]} 7... Qa5+ {[%clk 0:03:01.8]} 8. Nc3
{[%clk 0:02:57.8]} 8... Nh6 {[%clk 0:03:02]} 9. Bc4 {[%clk 0:02:55.5]} 9... O-O
{[%clk 0:03:01]} 10. O-O {[%clk 0:02:55.4]} 10... Nf5 {[%clk 0:02:54.8]} 11. Bb3
{[%clk 0:02:55]} 11... Nc6 {[%clk 0:02:51.2]} 12. d5 {[%clk 0:02:54.4]} 12...
Nxe3 {[%clk 0:02:51.1]} 13. fxe3 {[%clk 0:02:54.3]} 13... Ne5 {[%clk 0:02:51.3]}
14. Nd4 {[%clk 0:02:49.9]} 14... Bg4 {[%clk 0:02:41.2]} 15. Qd2 {[%clk
0:02:48.2]} 15... Rac8 {[%clk 0:02:38.7]} 16. h3 {[%clk 0:02:47.8]} 16... Bd7
{[%clk 0:02:34.7]} 17. Rf2 {[%clk 0:02:42.7]} 17... Nc4 {[%clk 0:02:29.2]} 18.
Bxc4 {[%clk 0:02:40.1]} 18... Rxc4 {[%clk 0:02:30.1]} 19. Raf1 {[%clk
0:02:39.8]} 19... Bxd4 {[%clk 0:02:16.6]} 20. exd4 {[%clk 0:02:39.2]} 20... Qb6
{[%clk 0:01:35.8]} 21. Qe2 {[%clk 0:02:38.7]} 21... Rc7 {[%clk 0:01:27.7]} 22.
Qe5 {[%clk 0:01:59.5]} 22... Qd6 {[%clk 0:00:55.2]} 23. Ne4 {[%clk 0:01:58.9]}
23... Qxe5 {[%clk 0:00:51.6]} 24. dxe5 {[%clk 0:01:59.8]} 24... Bf5 {[%clk
0:00:49.7]} 25. d6 {[%clk 0:01:59.8]} 25... exd6 {[%clk 0:00:30.2]} 26. Nxd6
{[%clk 0:01:47.7]} 26... Be6 {[%clk 0:00:29.9]} 27. b3 {[%clk 0:01:47.9]} 27...
Rc5 {[%clk 0:00:27.2]} 28. Re1 {[%clk 0:01:41.7]} 28... b6 {[%clk 0:00:26.8]}
29. Ne4 {[%clk 0:01:41.8]} 29... Rc7 {[%clk 0:00:22.6]} 30. Ng5 {[%clk
0:01:41.9]} 30... Re8 {[%clk 0:00:22.6]} 31. Ref1 {[%clk 0:01:41]} 31... Bd5
{[%clk 0:00:21.1]} 32. Re1 {[%clk 0:01:30.3]} 32... Rce7 {[%clk 0:00:20.3]} 33.
e6 {[%clk 0:01:28.7]} 33... Bxe6 {[%clk 0:00:19.7]} 34. Ne4 {[%clk 0:01:28.3]}
34... Kg7 {[%clk 0:00:13.5]} 35. Nf6 {[%clk 0:01:21.3]} 35... Rc8 {[%clk
0:00:13.7]} 36. Kh2 {[%clk 0:01:20]} 36... Rec7 {[%clk 0:00:13.6]} 37. Ree2
{[%clk 0:01:18.9]} 37... Rc1 {[%clk 0:00:12.4]} 38. Ne4 {[%clk 0:01:18.5]} 38...
h5 {[%clk 0:00:11.3]} 39. Ng5 {[%clk 0:01:18]} 39... R1c6 {[%clk 0:00:06]} 40.
Nf3 {[%clk 0:01:15.6]} 40... Rd6 {[%clk 0:00:04.5]} 41. Ng5 {[%clk 0:01:15.5]}
41... Rcc6 {[%clk 0:00:04]} 42. Re3 {[%clk 0:01:14.8]} 42... Rd5 {[%clk
0:00:04.1]} 43. Nf3 {[%clk 0:01:13.5]} 43... Rcd6 {[%clk 0:00:03.8]} 44. Rc3
{[%clk 0:01:12.7]} 44... Rc5 {[%clk 0:00:04]} 45. Re3 {[%clk 0:01:10.5]} 45...
Rdc6 {[%clk 0:00:04.3]} 46. Nd4 {[%clk 0:01:07.8]} 46... Rd6 {[%clk 0:00:04.7]}
47. Re4 {[%clk 0:01:00.9]} 47... Rcd5 {[%clk 0:00:03.5]} 48. Nf3 {[%clk
0:01:00.8]} 48... Rf5 {[%clk 0:00:04]} 49. Ra4 {[%clk 0:01:00.1]} 49... a5
{[%clk 0:00:03.3]} 50. Re2 {[%clk 0:00:59.5]} 50... Rfd5 {[%clk 0:00:03.5]} 51.
Rf4 {[%clk 0:00:58.6]} 51... Rf5 {[%clk 0:00:03.7]} 52. Ra4 {[%clk 0:00:57]}
52... Bd5 {[%clk 0:00:03.9]} 53. Nd4 {[%clk 0:00:56.6]} 53... Rff6 {[%clk
0:00:04.3]} 54. Nb5 {[%clk 0:00:56.7]} 54... Rde6 {[%clk 0:00:02.7]} 55. Rxe6
{[%clk 0:00:54.2]} 55... Bxe6 {[%clk 0:00:03.6]} 56. Nc3 {[%clk 0:00:48.1]}
56... Rf2 {[%clk 0:00:03.6]} 57. Rd4 {[%clk 0:00:45.5]} 57... Rc2 {[%clk
0:00:04.2]} 58. Rd3 {[%clk 0:00:44.8]} 58... Bf5 {[%clk 0:00:04.7]} 59. Re3
{[%clk 0:00:44.6]} 59... Rb2 {[%clk 0:00:04.8]} 60. Kg1 {[%clk 0:00:41.9]} 60...
Bd7 {[%clk 0:00:05.2]} 61. h4 {[%clk 0:00:31.8]} 61... Bc6 {[%clk 0:00:05.4]}
62. g3 {[%clk 0:00:32.2]} 62... Rg2+ {[%clk 0:00:05.6]} 63. Kf1 {[%clk 0:00:32]}
63... Rc2 {[%clk 0:00:06.5]} 64. Ke1 {[%clk 0:00:31.4]} 64... b5 {[%clk
0:00:06.6]} 65. Kd1 {[%clk 0:00:31.6]} 65... Rg2 {[%clk 0:00:07.1]} 66. a3
{[%clk 0:00:30.7]} 66... Rb2 {[%clk 0:00:05.9]} 67. Ne2 {[%clk 0:00:30.9]} 67...
Ra2 {[%clk 0:00:05.3]} 68. b4 {[%clk 0:00:30]} 68... axb4 {[%clk 0:00:05.3]} 69.
axb4 {[%clk 0:00:30.9]} 69... Rb2 {[%clk 0:00:06]} 70. Nd4 {[%clk 0:00:30.9]}
70... Bd5 {[%clk 0:00:02.9]} 71. Nxb5 {[%clk 0:00:30.1]} 71... Rxb4 {[%clk
0:00:03.5]} 72. Nc7 {[%clk 0:00:30.6]} 72... Be6 {[%clk 0:00:01.7]} 73. Nxe6+
{[%clk 0:00:29.4]} 73... fxe6 {[%clk 0:00:02.6]} 74. Rxe6 {[%clk 0:00:29.9]}
74... Rb3 {[%clk 0:00:03.3]} 75. Ke2 {[%clk 0:00:27.6]} 75... Rxg3 {[%clk
0:00:03]} 76. Re4 {[%clk 0:00:20.3]} 76... Rg4 {[%clk 0:00:03.2]} 77. Rxg4
{[%clk 0:00:20.4]} 77... hxg4 {[%clk 0:00:04]} 78. Ke3 {[%clk 0:00:20.9]} 78...
Kh6 {[%clk 0:00:01.8]} 79. Kf4 {[%clk 0:00:21.2]} 79... Kh5 {[%clk 0:00:02.4]}
80. Kg3 {[%clk 0:00:21.8]} 80... g5 {[%clk 0:00:02.8]} 81. hxg5 {[%clk
0:00:22.7]} 81... Kxg5 {[%clk 0:00:03.7]} 82. Kg2 {[%clk 0:00:22.8]} 82... Kf4
{[%clk 0:00:04.6]} 83. Kf2 {[%clk 0:00:22.8]} 83... g3+ {[%clk 0:00:05.5]} 84.
Kg2 {[%clk 0:00:22.8]} 84... Kg4 {[%clk 0:00:06.4]} 85. Kg1 {[%clk 0:00:21.7]}
85... Kh3 {[%clk 0:00:07.3]} 86. Kh1 {[%clk 0:00:21.7]} 86... g2+ {[%clk
0:00:08.2]} 87. Kg1 {[%clk 0:00:22.1]} 87... Kg3 {[%clk 0:00:09.1]} 1/2-1/2